fUSD/lending_fUSD_20240119
["ID","MTS","AMOUNT","RATE_DAILY","PERIOD"]
[312129342,1705661850427,-155.0,0.00019899,2]
[312129356,1705662109050,-279.2083474,0.00019899,2]
[312129357,1705662109079,-20834.51851155,0.00019899,2]
[312129359,1705662317320,-155.0,0.00019772,2]
[312129360,1705662317348,-504.03826774,0.00019773,2]
[312129361,1705662317379,-156.37,0.00019775,2]
[312129362,1705662317406,-2970.45520984,0.000199,3]
[312129363,1705662408699,600.0,0.00025,30]
[312129390,1705662631820,-155.0,0.00020199,2]
[312129392,1705662631831,-504.03826774,0.000202,2]
[312129395,1705662631843,-166.87862051,0.00020204,2]
[312129396,1705662631859,-166.87862046,0.00020741,2]
[312129398,1705662631872,-166.87862046,0.00021278,2]
[312129399,1705662631884,-922.46,0.00021587,2]
[312129400,1705662631895,-57.01587083,0.00021637,2]
[312129401,1705662631912,-159.64412917,0.00021637,2]
[312129402,1705662631927,-658.61644761,0.00021644,2]
[312129403,1705662631941,-485.80288671,0.00021644,2]
[312129404,1705662631999,-309.95931812,0.00021644,2]
[312129405,1705662632014,-47.76134756,0.00021644,2]
[312129406,1705662632026,-179.71,0.00021649,2]
[312129407,1705662632039,-336.08,0.00021673,2]
[312129408,1705662632050,-289.75,0.0002172,2]
[312129409,1705662632065,-150.99,0.0002172,2]
[312129410,1705662632077,-392.75,0.0002172,2]
[312129411,1705662632089,-200.0,0.0002172,2]
[312129412,1705662632101,-150.0,0.00021739,2]
[312129413,1705662632113,-300.0,0.00021739,2]
[312129414,1705662632124,-10662.94,0.0002174,2]
[312129415,1705662632135,-193.85,0.00021806,2]
[312129416,1705662632148,-166.87862046,0.00021816,2]
[312129417,1705662632166,-250.0,0.000219,2]
[312129418,1705662632178,-250.0,0.00021918,2]
[312129419,1705662632189,-200.0,0.00021918,2]
[312129420,1705662632201,-176.33,0.0002199,2]
[312129421,1705662632212,-550.0,0.00022,3]
[312129422,1705662632224,-2053.0,0.00022059,2]
[312129423,1705662632235,-166.87862046,0.00022353,2]
[312129424,1705662632251,-289.75,0.00022523,2]
[312129425,1705662632264,-3608.0,0.0002253,2]
[312129426,1705662632276,-336.08,0.00022652,2]
[312129427,1705662632288,-1347.31239357,0.000228,3]
[312129428,1705662632300,-6012.5957,0.000228,2]
[312129429,1705662632311,-499.99,0.00022816,2]
[312129430,1705662632322,-1198.00773498,0.00022888,2]
[312129431,1705662632333,-1198.00773495,0.0002289,2]
[312129432,1705662632344,-166.87862046,0.0002289,2]
[312129433,1705662632555,-166.20962493,0.0002289,2]
[312129434,1705662632566,-776.42806698,0.0002289,2]
[312129435,1705662632582,-205.9534,0.0002289,2]
[312129436,1705662632594,-1011.4467,0.0002289,2]
[312129437,1705662632605,-1198.00773495,0.00022891,2]
[312129438,1705662632617,-1198.00773495,0.00022893,2]
[312129439,1705662632628,-2017.61087309,0.00022894,2]
[312129440,1705662632639,-2017.61087298,0.00022895,2]
[312129441,1705662632653,-1198.00773495,0.00022895,2]
[312129442,1705662632665,-776.42806697,0.00022895,2]
[312129443,1705662632676,-2017.61087298,0.00022895,2]
[312129444,1705662632688,-2017.61087298,0.00022896,2]
[312129445,1705662632700,-2017.61087298,0.00022896,2]
[312129446,1705662632711,-1198.00773495,0.00022897,2]
[312129447,1705662632723,-2017.61087298,0.00022897,2]
[312129448,1705662632735,-2017.61087298,0.00022897,2]
[312129449,1705662632746,-2017.61087298,0.00022898,2]
[312129450,1705662632758,-1198.00773495,0.00022898,2]
[312129451,1705662632771,-2017.61087298,0.00022898,2]
[312129452,1705662632783,-2017.61087298,0.00022899,2]
[312129453,1705662632797,-2017.61087298,0.00022899,2]
[312129454,1705662632811,-5000.0,0.000229,2]
[312129455,1705662632823,-1000.0,0.000229,2]
[312129456,1705662632835,-160.3786,0.000229,2]
[312129457,1705662632846,-2017.61087298,0.000229,2]
[312129458,1705662632859,-154.57593043,0.000229,2]
[312129459,1705662632874,-55555.0,0.000229,2]
[312129460,1705662632887,-1198.00773495,0.000229,2]
[312129461,1705662632904,-776.42806697,0.000229,2]
[312129462,1705662632916,-239.45781889,0.00022978,2]
[312129463,1705662632927,-221.3187402,0.00022986,2]
[312129464,1705662632938,-16253.59235407,0.00022986,2]
[312129465,1705662632958,-408.25,0.00022986,2]
[312129466,1705662632973,-913.25522596,0.00022986,2]
[312129467,1705662632987,-2324.21258265,0.00022986,2]
[312129468,1705662633073,-21317.5,0.00022986,2]
[312129478,1705662637378,-35810.54196181,0.00022986,2]
[312129479,1705662637516,-2166.77132398,0.00022986,2]
[312129480,1705662637535,-24079.87655153,0.00022986,2]
[312129481,1705662637546,-19176.88701273,0.00022987,2]
[312129482,1705662637558,-3048.13565396,0.00022987,5]
[312129483,1705662637569,-554.2233141,0.00022987,2]
[312129484,1705662637584,-889314.58987462,0.00022988,2]
[312129485,1705662637597,-290.78820766,0.00022988,2]
[312129486,1705662637608,-536.22242276,0.00022988,2]
[312129487,1705662637619,-659.39103668,0.00022988,2]
[312129488,1705662637630,-2704.17548496,0.00022988,2]
[312129489,1705662637647,-258.61319956,0.00022988,2]
[312129490,1705662637660,-279.07354886,0.00022988,2]
[312129491,1705662637671,-436.58,0.00022988,2]
[312129492,1705662637683,-1347.63284048,0.00022988,2]
[312129493,1705662637694,-214.25314506,0.00022988,2]
[312129494,1705662637706,-546.59727466,0.00022988,2]
[312129495,1705662637717,-2780.01074237,0.00022988,2]
[312129496,1705662637728,-318.71536209,0.00022988,2]
[312129497,1705662637740,-2143.50853805,0.00022988,2]
[312129498,1705662637758,-1041.63971272,0.00022988,2]
[312129499,1705662637773,-417.52010037,0.00022988,2]
[312129501,1705662637785,-400.25276388,0.00022988,2]
[312129503,1705662637797,-12433.27261157,0.00022989,2]
[312129505,1705662637808,-500.0,0.00022989,2]
[312129507,1705662637818,-1487497.31904405,0.0002299,3]
[312129508,1705662637830,-1356210.83827897,0.0002299,3]
[312129509,1705662637845,-189.37054978,0.00022994,2]
[312129510,1705662637860,-999.99,0.00022998,2]
[312129511,1705662637877,-1000.0,0.00022998,2]
[312129512,1705662637889,-1000.0,0.00022998,2]
[312129514,1705662637902,-1000.0,0.00022998,2]
[312129517,1705662637914,-1000.0,0.00022998,2]
[312129520,1705662637925,-1000.0,0.00022998,2]
[312129523,1705662637936,-1000.0,0.00022998,2]
[312129525,1705662637948,-1000.0,0.00022998,2]
[312129527,1705662637962,-1000.0,0.00022998,2]
[312129530,1705662637974,-1000.0,0.00022998,2]
[312129532,1705662637991,-696.05,0.00022998,2]
[312129534,1705662638003,-150.0,0.00022999,2]
[312129536,1705662638013,-150.0,0.00022999,2]
[312129538,1705662638025,-150.0,0.00022999,2]
[312129540,1705662638036,-150.0,0.00022999,2]
[312129542,1705662638051,-150.0,0.00022999,2]
[312129544,1705662638065,-150.0,0.00022999,2]
[312129546,1705662638076,-150.0,0.00022999,2]
[312129549,1705662638088,-150.0,0.00022999,2]
[312129550,1705662638102,-150.0,0.00022999,2]
[312129552,1705662638115,-150.0,0.00022999,2]
[312129555,1705662638128,-150.0,0.00022999,2]
[312129557,1705662638141,-150.0,0.00022999,2]
[312129558,1705662638151,-150.0,0.00022999,2]
[312129561,1705662638165,-150.0,0.00022999,2]
[312129563,1705662638176,-150.0,0.00022999,2]
[312129564,1705662638187,-150.0,0.00022999,2]
[312129567,1705662638199,-150.0,0.00022999,2]
[312129568,1705662638213,-150.0,0.00022999,2]
[312129571,1705662638226,-5834.22996372,0.00023,2]
[312129573,1705662638239,-1622540.55276133,0.00023,2]
[312129575,1705662638258,-810503.93561252,0.00023,2]
[312129577,1705662638273,-369332.27459592,0.00023,2]
[312129580,1705662638294,-61824.31478331,0.00023,2]
[312129609,1705662639844,-573.44337937,0.00023,2]
[312129610,1705662639862,-636.4037655,0.00023,2]
[312129611,1705662639916,-429.27690379,0.00023,2]
[312129612,1705662639932,-1058.40994365,0.00023,2]
[312129613,1705662639946,-813.9352847,0.00023,2]
[312129614,1705662639994,-4209.33777526,0.00023,2]
[312129615,1705662640064,-33729.8742347,0.00023,2]
[312129616,1705662640079,-455.20087013,0.00023,2]
[312129617,1705662640693,-282577.23839368,0.00023,2]
[312129618,1705662640708,-5494.98237942,0.00023,2]
[312129655,1705662642728,-1521.2314036,0.00023,2]
[312129656,1705662642741,-2138.54162255,0.00023,2]
[312129657,1705662642754,-4400.40477257,0.00023,2]
[312129658,1705662642769,-6974.26218507,0.00023,2]
[312129659,1705662642787,-1118.38400007,0.00023,2]
[312129660,1705662642807,-2108.03273624,0.00023,2]
[312129661,1705662642821,-4712.03340236,0.00023,2]
[312129662,1705662642836,-565.44502803,0.00023,2]
[312129663,1705662642875,-645.43114552,0.00023,2]
[312129664,1705662642888,-352.72799642,0.00023,2]
[312129665,1705662642904,-687.70561276,0.00023,2]
[312129666,1705662642942,-803.92841362,0.00023,2]
[312129667,1705662642956,-28471.00560994,0.00023,2]
[312129671,1705662645486,-460.29155072,0.00022999,2]
[312129672,1705662645497,-7174.70844883,0.00023,2]
[312129673,1705662645513,-446.712,0.00023,2]
[312129674,1705662645573,-3303.13836474,0.00023,2]
[312129675,1705662645589,-2602.55160157,0.00023,2]
[312129676,1705662645605,-785.11579648,0.00023,2]
[312129677,1705662645626,-1739.46,0.00023,2]
[312129678,1705662645643,-1187.12788416,0.00023,2]
[312129679,1705662645681,-1406.24318065,0.00023,2]
[312129680,1705662645744,-19520.78832293,0.00023,2]
[312129681,1705662645811,-897.31553628,0.00023,2]
[312129683,1705662645824,-664.62392199,0.00023,2]
[312129696,1705663658693,-337.2296826,0.00019411,2]
[312129697,1705663663776,-155.0,0.00019412,2]
[312129698,1705663663802,-343.16911555,0.00019412,2]
[312129699,1705663669232,-155.0,0.00019411,2]
[312129700,1705663669261,-698.04764279,0.00019411,2]
[312129701,1705663675078,-1044.24818187,0.00019414,2]
[312129705,1705663831695,-155.99,0.000194,2]
[312129706,1705663831706,-164.56856321,0.00020282,2]
[312129707,1705663831717,-119.94191894,0.00020368,2]
[312129708,1705663831750,-1920.79225885,0.00020368,2]
[312129709,1705663831761,-200.0,0.00021313,2]
[312129710,1705663831774,-155.0,0.00021317,2]
[312129711,1705663831785,-1194.99,0.00021318,2]
[312129712,1705663831796,-818.36,0.0002134,2]
[312129713,1705663831806,-150.0,0.00021344,2]
[312129714,1705663831817,-8066.63324389,0.00021345,2]
[312129715,1705663831844,-658.34702874,0.00021345,2]
[312129716,1705663831867,-757.09041495,0.00021345,2]
[312129717,1705663831880,-1279.78270883,0.00021345,2]
[312129718,1705663831894,-12362.99660359,0.00021345,2]
[312129719,1705663831906,-236.96,0.00021353,2]
[312129720,1705663831918,-157.57,0.00021357,2]
[312129722,1705663831930,-500.0,0.00021361,2]
[312129724,1705663831941,-2318.28,0.00021489,2]
[312129726,1705663831952,-379.34,0.00021529,2]
[312129728,1705663831963,-499.99,0.00021533,2]
[312129729,1705663831974,-2000.0,0.00021534,2]
[312129730,1705663831985,-150.0,0.00021534,2]
[312129731,1705663831998,-1000.0,0.00021571,2]
[312129732,1705663832010,-150.45,0.0002159,2]
[312129733,1705663832021,-157.44,0.00021596,2]
[312129734,1705663832032,-6672.74,0.0002161,2]
[312129735,1705663832043,-173.85,0.00021644,2]
[312129736,1705663832054,-2093.1197052,0.00021718,2]
[312129737,1705663832065,-157.44,0.00021736,2]
[312129738,1705663832076,-159.31,0.00021753,2]
[312129740,1705663832086,-168.07,0.00021753,2]
[312129742,1705663832096,-167.14,0.000218,2]
[312129744,1705663832107,-161.59,0.00021826,2]
[312129746,1705663832119,-150.45,0.00021844,2]
[312129747,1705663832132,-157.44,0.00021877,2]
[312129749,1705663832143,-250.0,0.000219,2]
[312129751,1705663832155,-250.0,0.00021918,2]
[312129752,1705663832165,-150.0,0.00022,2]
[312129753,1705663832175,-350.6,0.00022,2]
[312129754,1705663832187,-151.90251997,0.00022,2]
[312129755,1705663832198,-157.44,0.00022018,2]
[312129756,1705663832208,-155.99,0.00022089,2]
[312129757,1705663832220,-150.45,0.00022098,2]
[312129758,1705663832428,-157.57,0.00022158,2]
[312129759,1705663832440,-157.44,0.00022158,2]
[312129760,1705663832451,-157.44,0.00022299,2]
[312129761,1705663832462,-159.46,0.00022317,2]
[312129762,1705663832473,-171.55,0.00022317,2]
[312129763,1705663832484,-150.45,0.00022351,2]
[312129764,1705663832494,-157.44,0.0002244,2]
[312129765,1705663832504,-173.85,0.00022445,2]
[312129766,1705663832515,-1376.18928261,0.00022508,3]
[312129767,1705663832526,-379.34,0.00022508,2]
[312129768,1705663832537,-157.44,0.0002258,2]
[312129769,1705663832548,-150.45,0.00022605,2]
[312129770,1705663832560,-150.0,0.00022639,2]
[312129771,1705663832570,-157.44,0.00022721,2]
[312129772,1705663832581,-158.0,0.00022766,2]
[312129773,1705663832591,-158.15556964,0.00022784,2]
[312129774,1705663832602,-1015.27508866,0.00022799,2]
[312129775,1705663832612,-3302.6703,0.000228,2]
[312129776,1705663832623,-2869.8311,0.000228,2]
[312129777,1705663832635,-159.31,0.00022841,2]
[312129778,1705663832646,-150.45,0.00022859,2]
[312129779,1705663832657,-180.9212962,0.00022884,2]
[312129780,1705663832667,-1164.4409,0.00022886,2]
[312129781,1705663832677,-1336.8872,0.00022888,2]
[312129782,1705663832688,-343.77148874,0.00022898,2]
[312129783,1705663832698,-1000.0,0.00022898,2]
[312129784,1705663832709,-156.89259705,0.00022898,2]
[312129785,1705663832719,-233.99962538,0.00022898,2]
[312129786,1705663832729,-199.46908704,0.00022898,2]
[312129787,1705663832740,-622.07746297,0.00022898,2]
[312129788,1705663832750,-767.90994685,0.00022898,2]
[312129789,1705663832760,-233.03383861,0.00022898,2]
[312129790,1705663832771,-243.64840877,0.00022898,2]
[312129791,1705663832782,-190.43884371,0.00022898,2]
[312129792,1705663832793,-155.0,0.00022898,2]
[312129793,1705663832804,-563.05698065,0.00022898,2]
[312129794,1705663832814,-155.45496392,0.00022898,2]
[312129795,1705663832824,-353.39032026,0.00022898,2]
[312129796,1705663832835,-162.69544963,0.00022898,2]
[312129797,1705663832846,-1981.22871792,0.00022899,2]
[312129798,1705663832857,-164.56856321,0.000229,2]
[312129799,1705663832867,-550.70629691,0.000229,2]
[312129800,1705663832879,-154.57593043,0.000229,2]
[312129801,1705663832891,-250.0,0.000229,2]
[312129802,1705663832907,-2477.99481262,0.000229,2]
[312129803,1705663832922,-426.36,0.000229,2]
[312129805,1705663837969,-7979.34233345,0.000229,2]
[312129806,1705663837983,-12870.65045393,0.000229,2]
[312129807,1705663837994,-638.84363248,0.000229,2]
[312129808,1705663838004,-1294.53748835,0.000229,2]
[312129809,1705663838014,-1191.0865705,0.000229,2]
[312129810,1705663838025,-409.30432801,0.000229,2]
[312129811,1705663838037,-157.57,0.00022958,2]
[312129812,1705663838047,-171.69607649,0.00022996,2]
[312129813,1705663838058,-41.87088874,0.00022996,2]
[312129814,1705663838072,-423.63766988,0.00022996,2]
[312129815,1705663838083,-155.71538539,0.00022996,2]
[312129816,1705663838095,-697.40506403,0.00022996,2]
[312129817,1705663838106,-180.09491239,0.00022996,2]
[312129818,1705663838118,-397.63149517,0.00022996,2]
[312129819,1705663838129,-2860.90387402,0.00022997,2]
[312129820,1705663838149,-4963.49662326,0.00022997,2]
[312129821,1705663838207,-166.2286384,0.00022997,2]
[312129822,1705663838218,-311.59150887,0.00022997,2]
[312129823,1705663838230,-23.87985273,0.00022997,3]
[312129824,1705663838247,-418.39942505,0.00022997,3]
[312129825,1705663838311,-618.56677851,0.00022997,3]
[312129826,1705663838322,-4624.96257004,0.00022998,2]
[312129827,1705663838529,-448.84717439,0.00022998,2]
[312129828,1705663838541,-696.04,0.00022998,2]
[312129829,1705663838552,-1000.0,0.00022998,2]
[312129830,1705663838563,-1000.01,0.00022998,2]
[312129831,1705663838574,-999.99,0.00022998,2]
[312129832,1705663838586,-1000.01,0.00022998,2]
[312129833,1705663838600,-999.99,0.00022998,2]
[312129834,1705663838611,-999.99,0.00022998,2]
[312129835,1705663838622,-1000.02,0.00022998,2]
[312129836,1705663838634,-999.99,0.00022998,2]
[312129837,1705663838645,-999.99,0.00022998,2]
[312129838,1705663838655,-999.98,0.00022998,2]
[312129839,1705663838666,-500.0,0.00022998,2]
[312129840,1705663838677,-4291.66,0.00022998,3]
[312129841,1705663838688,-4291.66,0.00022998,3]
[312129842,1705663838699,-4291.66,0.00022998,3]
[312129843,1705663838712,-4291.66,0.00022998,3]
[312129844,1705663838722,-4291.66,0.00022998,3]
[312129845,1705663838733,-4291.66,0.00022998,3]
[312129846,1705663838744,-4291.66,0.00022998,3]
[312129847,1705663838754,-4291.66,0.00022998,3]
[312129848,1705663838764,-4291.66,0.00022998,3]
[312129849,1705663838775,-178.55338146,0.00022999,2]
[312129850,1705663838785,-164.7287992,0.00022999,2]
[312129851,1705663838795,-505807.38821923,0.00022999,2]
[312129852,1705663838806,-150.0,0.00022999,2]
[312129853,1705663838823,-150.0,0.00022999,2]
[312129854,1705663838833,-150.0,0.00022999,2]
[312129855,1705663838845,-150.0,0.00022999,2]
[312129856,1705663838855,-150.0,0.00022999,2]
[312129857,1705663838866,-150.0,0.00022999,2]
[312129858,1705663838877,-743748.65952203,0.00023,3]
[312129859,1705663838889,-335647.53682997,0.00023,2]
[312129860,1705663838903,-810503.93561252,0.00023,2]
[312129861,1705663838916,-369332.27459592,0.00023,2]
[312129862,1705663838929,-1726.89324138,0.00023,2]
[312129863,1705663838958,-31345.74903204,0.00023,2]
[312129864,1705663839015,-706.17412331,0.00023,2]
[312129865,1705663839037,-4291.66,0.00022998,3]
[312129866,1705663839048,-22941.86363629,0.00023,2]
[312129867,1705663840358,-449.20964885,0.000229,2]
[312129868,1705663840381,-872.39353263,0.000229,2]
[312129869,1705663840400,-85.69590393,0.00022998,3]
[312129870,1705663840424,-552.16636131,0.00022998,3]
[312129871,1705663840446,-720.83166211,0.00022998,3]
[312129872,1705663840470,-825.28,0.00022998,3]
[312129873,1705663840492,-756.131,0.00022998,3]
[312129874,1705663840517,-1062.73661376,0.00022998,3]
[312129875,1705663840565,-270.17983787,0.00022998,3]
[312129876,1705663840590,-18.63862102,0.00022998,3]
[312129877,1705663840608,-832.54837883,0.00022998,3]
[312129878,1705663840854,-2305.73253438,0.00022998,3]
[312129879,1705663840915,-1153.37908679,0.00022998,3]
[312129880,1705663840936,-1601.83959236,0.00022998,3]
[312129901,1705665021511,-488.13402773,0.00020138,2]
[312129916,1705665032221,-160.02689902,0.00020039,2]
[312129999,1705665037937,-155.99,0.00020139,2]
[312130000,1705665037947,-204.0,0.00021479,2]
[312130001,1705665037960,-250.0,0.000219,2]
[312130002,1705665037970,-416.84,0.00021992,2]
[312130003,1705665037981,-550.0,0.00022,3]
[312130004,1705665037991,-173.85,0.00022057,2]
[312130005,1705665038002,-162.06,0.00022178,2]
[312130006,1705665038013,-250.0,0.00022242,2]
[312130007,1705665038024,-1000.0,0.000223,2]
[312130008,1705665038034,-159.64,0.00022307,2]
[312130009,1705665038045,-150.99,0.00022307,2]
[312130010,1705665038055,-150.0,0.00022438,2]
[312130011,1705665038067,-161.58,0.00022488,2]
[312130012,1705665038078,-55555.0,0.00022898,2]
[312130013,1705665038089,-150.0,0.00022899,2]
[312130014,1705665038099,-250.0,0.000229,2]
[312130015,1705665038111,-6562.58337042,0.000229,2]
[312130016,1705665038127,-154.86226239,0.000229,2]
[312130017,1705665038137,-184.67736104,0.000229,2]
[312130018,1705665038148,-416.84,0.00022971,2]
[312130019,1705665038159,-1702.53872788,0.00022986,3]
[312130020,1705665038170,-632.18,0.00022986,2]
[312130021,1705665038181,-500.0,0.00022986,2]
[312130022,1705665038191,-500.0,0.00022986,2]
[312130023,1705665038203,-573.44,0.00022986,2]
[312130024,1705665038217,-1124.56,0.00022986,2]
[312130025,1705665038227,-500.0,0.00022986,2]
[312130026,1705665038238,-17697.0,0.00022986,2]
[312130027,1705665038249,-448.84717439,0.00022995,2]
[312130028,1705665038261,-4624.96257004,0.00022995,2]
[312130029,1705665038272,-178.11456844,0.00022995,2]
[312130030,1705665038283,-499.99,0.00022996,2]
[312130031,1705665038295,-64158.66123014,0.00022996,2]
[312130032,1705665038306,-164.7287992,0.00022996,2]
[312130033,1705665038317,-178.55338146,0.00022996,2]
[312130034,1705665038328,-500.0,0.00022996,2]
[312130035,1705665038338,-500.0,0.00022996,2]
[312130036,1705665038350,-654.12,0.00022996,2]
[312130037,1705665038360,-1082.05,0.00022996,2]
[312130038,1705665038374,-500.0,0.00022996,2]
[312130039,1705665038384,-855.28,0.00022996,2]
[312130040,1705665038395,-500.0,0.00022996,2]
[312130041,1705665038406,-779.53,0.00022996,2]
[312130042,1705665038416,-500.0,0.00022996,2]
[312130043,1705665038427,-1001.84,0.00022996,2]
[312130044,1705665038438,-566.42706922,0.00022996,2]
[312130045,1705665038450,-160.99807622,0.00022997,2]
[312130046,1705665038461,-500.0,0.00022997,2]
[312130047,1705665038471,-500.0,0.00022997,2]
[312130048,1705665038482,-508.85962905,0.00022997,2]
[312130049,1705665038494,-500.0,0.00022997,2]
[312130050,1705665038505,-540.23827717,0.00022997,2]
[312130051,1705665038516,-500.0,0.00022997,2]
[312130052,1705665038526,-500.0,0.00022997,2]
[312130053,1705665038540,-500.0,0.00022997,2]
[312130054,1705665038551,-500.0,0.00022997,2]
[312130055,1705665038562,-505.07258014,0.00022997,2]
[312130056,1705665038574,-500.0,0.00022997,2]
[312130057,1705665038585,-500.0,0.00022997,2]
[312130058,1705665038597,-500.0,0.00022997,2]
[312130059,1705665038608,-500.0,0.00022997,2]
[312130060,1705665038621,-500.0,0.00022997,2]
[312130061,1705665038632,-500.0,0.00022997,2]
[312130062,1705665038642,-500.0,0.00022997,2]
[312130063,1705665038653,-503.62762908,0.00022997,2]
[312130064,1705665038664,-500.0,0.00022997,2]
[312130065,1705665038675,-500.0,0.00022997,2]
[312130066,1705665038685,-500.0,0.00022997,2]
[312130067,1705665038697,-500.0,0.00022997,2]
[312130068,1705665038710,-500.0,0.00022997,2]
[312130069,1705665038723,-504.42284752,0.00022997,2]
[312130070,1705665038749,-500.0,0.00022997,2]
[312130071,1705665038771,-507.45687585,0.00022997,2]
[312130072,1705665038782,-529.1655284,0.00022997,2]
[312130073,1705665038794,-500.0,0.00022997,2]
[312130074,1705665038806,-500.0,0.00022997,2]
[312130075,1705665038817,-500.0,0.00022997,2]
[312130076,1705665038827,-500.0,0.00022997,2]
[312130077,1705665038839,-500.0,0.00022997,2]
[312130078,1705665038851,-504.79363956,0.00022997,2]
[312130079,1705665038862,-548.8314606,0.00022997,2]
[312130080,1705665038874,-500.0,0.00022997,2]
[312130081,1705665038887,-500.0,0.00022997,2]
[312130082,1705665038898,-500.0,0.00022997,2]
[312130083,1705665038909,-500.0,0.00022997,2]
[312130084,1705665038919,-500.0,0.00022997,2]
[312130085,1705665038931,-500.0,0.00022997,2]
[312130086,1705665038942,-500.0,0.00022997,2]
[312130087,1705665038952,-596.65262303,0.00022997,2]
[312130088,1705665038963,-724.8,0.00022997,2]
[312130089,1705665038976,-510.30480863,0.00022997,2]
[312130090,1705665038987,-500.0,0.00022997,2]
[312130091,1705665038997,-788.52,0.00022997,2]
[312130092,1705665039008,-534.13,0.00022997,2]
[312130093,1705665039019,-533.000034,0.00022997,2]
[312130094,1705665039030,-500.0,0.00022997,2]
[312130095,1705665039040,-500.0,0.00022997,2]
[312130096,1705665039051,-500.0,0.00022997,2]
[312130097,1705665039062,-500.0,0.00022997,2]
[312130098,1705665039072,-500.0,0.00022997,2]
[312130099,1705665039085,-735.17,0.00022997,2]
[312130100,1705665039096,-510.80919825,0.00022997,2]
[312130101,1705665039106,-732.36,0.00022997,2]
[312130102,1705665039117,-500.0,0.00022997,2]
[312130103,1705665039128,-2528.08,0.00022997,2]
[312130104,1705665039139,-500.0,0.00022997,2]
[312130105,1705665039150,-500.0,0.00022997,2]
[312130106,1705665039161,-508.42748327,0.00022997,2]
[312130107,1705665039171,-507.04245703,0.00022997,2]
[312130108,1705665039182,-500.0,0.00022997,2]
[312130109,1705665039194,-2755.12,0.00022997,5]
[312130110,1705665039206,-519.04759177,0.00022997,2]
[312130111,1705665039217,-500.0,0.00022997,2]
[312130112,1705665039228,-500.0,0.00022997,2]
[312130113,1705665039239,-500.0,0.00022997,2]
[312130114,1705665039249,-500.0,0.00022997,2]
[312130115,1705665039260,-500.0,0.00022997,2]
[312130116,1705665039271,-500.0,0.00022997,2]
[312130117,1705665039282,-1639.1,0.00022997,2]
[312130118,1705665039294,-500.0,0.00022997,2]
[312130119,1705665039306,-500.0,0.00022997,2]
[312130120,1705665039317,-500.0,0.00022997,2]
[312130121,1705665039328,-1257.71,0.00022997,2]
[312130122,1705665039339,-566.51,0.00022997,2]
[312130123,1705665039349,-11870.46,0.00022997,2]
[312130124,1705665039360,-500.0,0.00022997,2]
[312130125,1705665039372,-500.0,0.00022997,2]
[312130126,1705665039383,-500.0,0.00022997,2]
[312130127,1705665039393,-500.0,0.00022997,2]
[312130128,1705665039411,-1894.19,0.00022997,2]
[312130129,1705665039421,-500.0,0.00022997,2]
[312130130,1705665039432,-500.0,0.00022997,2]
[312130131,1705665039442,-15044.76,0.00022997,2]
[312130132,1705665039452,-500.0,0.00022997,2]
[312130133,1705665039462,-500.0,0.00022997,2]
[312130134,1705665039472,-500.0,0.00022997,2]
[312130135,1705665039482,-500.0,0.00022997,2]
[312130136,1705665039492,-500.0,0.00022997,2]
[312130137,1705665039503,-500.0,0.00022997,2]
[312130138,1705665039516,-4463.66,0.00022997,2]
[312130139,1705665039526,-1000.0,0.00022997,2]
[312130140,1705665039536,-656.23,0.00022997,2]
[312130141,1705665039547,-500.0,0.00022997,2]
[312130142,1705665039557,-500.0,0.00022997,2]
[312130143,1705665039567,-1204.33,0.00022997,2]
[312130144,1705665039577,-36419.83,0.00022997,2]
[312130145,1705665039587,-3810.23,0.00022997,2]